[Event "Elitserien 2019/2020, round 1-3"]
[Site "Uppsala University, Gamla torget, Uppsala, Sweden"]
[Date "2019.10.20"]
[Round "3.14"]
[White "Moreau, Teodor"]
[Black "Arman, Deniz"]
[Result "1/2-1/2"]
[TimeControl "90 minutes for 40 moves + 30 minutes for the rest of the game + 30 seconds per move from move one."]
[WhiteTitle "FM"]
[BlackTitle "FM"]
[WhiteFideId "1701177"]
[BlackFideId "6302106"]
[WhiteElo "2339"]
[BlackElo "2333"]

1. d4 {[%clk 01:30:20]} {[%emt 00:00:38]} Nf6 {[%clk 01:30:57]} {[%emt
00:00:04]} 2. Nf3 {[%clk 01:21:38]} {[%emt 00:09:12]} g6 {[%clk 01:31:21]}
{[%emt 00:00:06]} 3. g3 {[%clk 01:21:55]} {[%emt 00:00:13]} Bg7 {[%clk
01:31:45]} {[%emt 00:00:05]} 4. Bg2 {[%clk 01:22:17]} {[%emt 00:00:07]} O-O
{[%clk 01:32:11]} {[%emt 00:00:06]} 5. c4 {[%clk 01:22:20]} {[%emt 00:00:27]}
d5 {[%clk 01:32:36]} {[%emt 00:00:06]} 6. cxd5 {[%clk 01:21:11]} {[%emt
00:01:39]} Nxd5 {[%clk 01:33:01]} {[%emt 00:00:05]} 7. O-O {[%clk 01:21:27]}
{[%emt 00:00:13]} Nb6 {[%clk 01:32:27]} {[%emt 00:01:04]} 8. Nc3 {[%clk
01:13:54]} {[%emt 00:08:02]} Nc6 {[%clk 01:32:41]} {[%emt 00:00:16]} 9. Bf4
{[%clk 01:02:38]} {[%emt 00:11:46]} Bg4 {[%clk 01:27:42]} {[%emt 00:05:29]} 10.
h3 {[%clk 00:36:31]} {[%emt 00:26:38]} Bxf3 {[%clk 01:24:54]} {[%emt 00:03:18]}
11. Bxf3 {[%clk 00:36:49]} {[%emt 00:00:12]} Nxd4 {[%clk 01:23:30]} {[%emt
00:01:54]} 12. Bxb7 {[%clk 00:36:48]} {[%emt 00:00:32]} Rb8 {[%clk 01:23:49]}
{[%emt 00:00:10]} 13. Bg2 {[%clk 00:36:16]} {[%emt 00:01:01]} Ne6 {[%clk
01:12:06]} {[%emt 00:12:14]} 14. Be3 {[%clk 00:26:48]} {[%emt 00:09:58]} c5
{[%clk 01:01:00]} {[%emt 00:11:36]} 15. Qc1 {[%clk 00:10:16]} {[%emt 00:17:02]}
Nc4 {[%clk 00:59:12]} {[%emt 00:02:18]} 16. Rb1 {[%clk 00:07:22]} {[%emt
00:03:24]} Nd4 {[%clk 00:45:44]} {[%emt 00:13:57]} 17. Bxd4 {[%clk 00:03:22]}
{[%emt 00:04:31]} cxd4 {[%clk 00:45:37]} {[%emt 00:00:37]} 18. Ne4 {[%clk
00:03:30]} {[%emt 00:00:22]} Rc8 {[%clk 00:45:35]} {[%emt 00:00:32]} 19. Qd1
{[%clk 00:02:47]} {[%emt 00:01:13]} Qa5 {[%clk 00:45:29]} {[%emt 00:00:35]} 20.
Qb3 {[%clk 00:01:01]} {[%emt 00:02:18]} Bh6 {[%clk 00:41:22]} {[%emt 00:04:35]}
21. h4 {[%clk 00:00:39]} {[%emt 00:00:53]} Rfd8 {[%clk 00:38:57]} {[%emt
00:02:55]} 22. a3 {[%clk 00:00:53]} {[%emt 00:00:17]} Kf8 {[%clk 00:38:29]}
{[%emt 00:00:57]} 23. Qd3 {[%clk 00:01:15]} {[%emt 00:00:08]} Qb6 {[%clk
00:37:46]} {[%emt 00:01:12]} 24. b4 {[%clk 00:01:03]} {[%emt 00:00:44]} Ne5
{[%clk 00:33:23]} {[%emt 00:04:52]} 25. Qb3 {[%clk 00:01:22]} {[%emt 00:00:11]}
d3 {[%clk 00:33:50]} {[%emt 00:00:03]} 26. exd3 {[%clk 00:01:30]} {[%emt
00:00:22]} Rxd3 {[%clk 00:34:07]} {[%emt 00:00:12]} 27. Qa2 {[%clk 00:01:23]}
{[%emt 00:00:38]} Qd4 {[%clk 00:34:15]} {[%emt 00:00:21]} 28. Qe2 {[%clk
00:00:37]} {[%emt 00:01:17]} Rd8 {[%clk 00:32:59]} {[%emt 00:01:47]} 29. Nc5
{[%clk 00:00:49]} {[%emt 00:00:17]} Rd2 {[%clk 00:33:06]} {[%emt 00:00:22]} 30.
Qe4 {[%clk 00:01:11]} {[%emt 00:00:09]} Ng4 {[%clk 00:30:23]} {[%emt 00:03:12]}
31. Qxd4 {[%clk 00:01:09]} {[%emt 00:00:33]} R2xd4 {[%clk 00:30:50]} {[%emt
00:00:03]} 32. Rb3 {[%clk 00:01:20]} {[%emt 00:00:19]} Rd2 {[%clk 00:31:05]}
{[%emt 00:00:13]} 33. a4 {[%clk 00:01:16]} {[%emt 00:00:36]} Ra2 {[%clk
00:31:31]} {[%emt 00:00:03]} 34. Bf3 {[%clk 00:01:11]} {[%emt 00:00:35]} Ne5
{[%clk 00:31:50]} {[%emt 00:00:11]} 35. Re1 {[%clk 00:00:59]} {[%emt 00:00:44]}
Bg7 {[%clk 00:31:07]} {[%emt 00:01:12]} 36. Bg2 {[%clk 00:00:38]} {[%emt
00:00:51]} Rdd2 {[%clk 00:31:12]} {[%emt 00:00:25]} 37. Rf1 {[%clk 00:00:48]}
{[%emt 00:00:21]} Ng4 {[%clk 00:30:36]} {[%emt 00:01:05]} 38. Ne4 {[%clk
00:01:10]} {[%emt 00:00:08]} Rdc2 {[%clk 00:30:41]} {[%emt 00:00:23]} 39. Rd3
{[%clk 00:00:43]} {[%emt 00:00:58]} Be5 {[%clk 00:30:40]} {[%emt 00:00:31]} 40.
Bf3 {[%clk 00:00:50]} {[%emt 00:00:23]} Nh6 {[%clk 00:29:12]} {[%emt 00:01:57]}
41. Rd5 {[%clk 00:24:35]} {[%emt 00:06:45]} f6 {[%clk 00:58:26]} {[%emt
00:01:17]} 42. Nc5 {[%clk 00:23:00]} {[%emt 00:02:04]} Bd6 {[%clk 00:57:48]}
{[%emt 00:01:08]} 43. Ne6+ {[%clk 00:16:19]} {[%emt 00:07:12]} Ke8 {[%clk
00:54:14]} {[%emt 00:04:02]} 44. Ra5 {[%clk 00:13:08]} {[%emt 00:03:43]} Bxb4
{[%clk 00:46:41]} {[%emt 00:08:02]} 45. Rxa7 {[%clk 00:13:04]} {[%emt
00:00:35]} Rc8 {[%clk 00:37:07]} {[%emt 00:10:04]} 46. Rb1 {[%clk 00:08:55]}
{[%emt 00:04:39]} Bd6 {[%clk 00:32:14]} {[%emt 00:05:22]} 47. Bb7 {[%clk
00:03:40]} {[%emt 00:05:46]} Bc5 {[%clk 00:05:26]} {[%emt 00:27:19]} 48. Nxc5
{[%clk 00:02:01]} {[%emt 00:02:09]} Rxc5 {[%clk 00:05:52]} {[%emt 00:00:03]} 49.
Re1 {[%clk 00:01:53]} {[%emt 00:00:38]} Nf5 {[%clk 00:05:07]} {[%emt 00:01:15]}
50. h5 {[%clk 00:00:58]} {[%emt 00:01:25]} gxh5 {[%clk 00:04:04]} {[%emt
00:01:33]} 51. Bf3 {[%clk 00:01:00]} {[%emt 00:00:27]} Kf8 {[%clk 00:03:51]}
{[%emt 00:00:44]} 52. Be4 {[%clk 00:00:45]} {[%emt 00:00:45]} Re5 {[%clk
00:03:32]} {[%emt 00:00:48]} 53. Kf1 {[%clk 00:00:47]} {[%emt 00:00:28]} h4
{[%clk 00:01:49]} {[%emt 00:02:13]} 54. gxh4 {[%clk 00:00:45]} {[%emt
00:00:32]} Nxh4 {[%clk 00:00:46]} {[%emt 00:01:34]} 55. Bxh7 {[%clk 00:00:51]}
{[%emt 00:00:24]} Rxe1+ {[%clk 00:00:41]} {[%emt 00:00:34]} 56. Kxe1 {[%clk
00:01:16]} {[%emt 00:00:05]} Nf3+ {[%clk 00:01:09]} {[%emt 00:00:03]} 57. Kf1
{[%clk 00:01:29]} {[%emt 00:00:16]} Nh2+ {[%clk 00:01:15]} {[%emt 00:00:23]} 58.
Kg2 {[%clk 00:00:53]} {[%emt 00:01:09]} Ng4 {[%clk 00:01:37]} {[%emt 00:00:06]}
59. Kg3 {[%clk 00:01:22]} Nxf2 {[%clk 00:01:49]} {[%emt 00:00:20]} 60. a5
{[%clk 00:01:44]} {[%emt 00:00:09]} Nd1 {[%clk 00:00:41]} {[%emt 00:01:38]} 61.
a6 {[%clk 00:01:55]} {[%emt 00:00:20]} Ra3+ {[%clk 00:00:42]} {[%emt 00:00:28]}
62. Kf4 {[%clk 00:01:17]} {[%emt 00:01:07]} Nc3 {[%clk 00:01:08]} {[%emt
00:00:06]} 63. Ra8+ {[%clk 00:00:45]} {[%emt 00:01:01]} Kg7 {[%clk 00:01:25]}
{[%emt 00:00:12]} 64. Bg8 {[%clk 00:01:09]} {[%emt 00:00:07]} Nb5 {[%clk
00:00:57]} {[%emt 00:00:59]} 65. Kf5 {[%clk 00:00:33]} {[%emt 00:01:07]} Nc7
{[%clk 00:00:38]} {[%emt 00:00:47]} 66. Ra7 {[%clk 00:00:43]} {[%emt 00:00:21]}
Ra5+ {[%clk 00:00:45]} {[%emt 00:00:24]} 67. Kg4 {[%clk 00:00:33]} {[%emt
00:00:40]} Rxa6 {[%clk 00:00:43]} {[%emt 00:00:32]} 68. Rxc7 {[%clk 00:00:48]}
{[%emt 00:00:14]} Kxg8 {[%clk 00:01:04]} {[%emt 00:00:09]} 69. Rxe7 {[%clk
00:01:11]} {[%emt 00:00:07]} Ra5 {[%clk 00:01:28]} {[%emt 00:00:06]} 70. Kf4
{[%clk 00:01:03]} {[%emt 00:00:38]} Kf8 {[%clk 00:01:53]} {[%emt 00:00:05]} 71.
Rb7 {[%clk 00:01:00]} {[%emt 00:00:34]} Re5 {[%clk 00:02:18]} {[%emt 00:00:04]}
72. Ra7 {[%clk 00:00:55]} {[%emt 00:00:35]} Re7 {[%clk 00:02:43]} {[%emt
00:00:05]} 73. Rxe7 {[%clk 00:00:46]} {[%emt 00:00:40]} Kxe7 {[%clk 00:03:10]}
{[%emt 00:00:03]} 74. Kf5 {[%clk 00:01:06]} {[%emt 00:00:09]} Kd6 {[%clk
00:03:36]} {[%emt 00:00:04]} 75. Kxf6 {[%emt 00:00:10]} 1/2-1/2

[Event "Elitserien 2019/2020, round 1-3"]
[Site "Uppsala University, Gamla torget, Uppsala, Sweden"]
[Date "2019.10.20"]
[Round "3.15"]
[White "Uddenfeldt, Dan"]
[Black "Bellon Lopez, Juan Manuel"]
[Result "0-1"]
[TimeControl "90 minutes for 40 moves + 30 minutes for the rest of the game + 30 seconds per move from move one."]
[BlackTitle "GM"]
[WhiteFideId "1700243"]
[BlackFideId "2200031"]
[WhiteElo "2352"]
[BlackElo "2334"]

1. d4 {[%clk 01:30:32]} {[%emt 00:00:27]} Nf6 {[%clk 01:30:42]} {[%emt
00:00:18]} 2. Nf3 {[%clk 01:30:33]} {[%emt 00:00:29]} d5 {[%clk 01:28:38]}
{[%emt 00:02:34]} 3. c4 {[%clk 01:29:13]} {[%emt 00:01:51]} c6 {[%clk
01:27:25]} {[%emt 00:01:42]} 4. cxd5 {[%clk 01:27:34]} {[%emt 00:02:09]} cxd5
{[%clk 01:27:49]} {[%emt 00:00:06]} 5. Nc3 {[%clk 01:27:14]} {[%emt 00:00:50]}
Nc6 {[%clk 01:28:10]} {[%emt 00:00:09]} 6. Bf4 {[%clk 01:26:48]} {[%emt
00:00:57]} e6 {[%clk 01:27:10]} {[%emt 00:01:30]} 7. e3 {[%clk 01:24:04]}
{[%emt 00:03:14]} Bd6 {[%clk 01:25:30]} {[%emt 00:02:09]} 8. Bg3 {[%clk
01:21:44]} {[%emt 00:02:51]} Bxg3 {[%clk 01:17:02]} {[%emt 00:08:58]} 9. hxg3
{[%clk 01:22:06]} {[%emt 00:00:08]} Ne4 {[%clk 01:11:51]} {[%emt 00:05:41]} 10.
Nxe4 {[%clk 01:20:08]} {[%emt 00:02:27]} dxe4 {[%clk 01:12:16]} {[%emt
00:00:06]} 11. Nd2 {[%clk 01:20:27]} {[%emt 00:00:11]} e5 {[%clk 01:01:43]}
{[%emt 00:11:02]} 12. dxe5 {[%clk 01:16:29]} {[%emt 00:04:29]} Qa5 {[%clk
01:01:50]} {[%emt 00:00:22]} 13. Qc2 {[%clk 01:14:32]} {[%emt 00:02:27]} Bf5
{[%clk 00:58:48]} {[%emt 00:03:32]} 14. g4 {[%clk 01:11:15]} {[%emt 00:03:47]}
Bxg4 {[%clk 00:52:50]} {[%emt 00:06:29]} 15. f3 {[%clk 01:02:32]} {[%emt
00:09:12]} exf3 {[%clk 00:50:10]} {[%emt 00:03:11]} 16. gxf3 {[%clk 00:56:03]}
{[%emt 00:06:59]} Bxf3 {[%clk 00:46:57]} {[%emt 00:03:43]} 17. Rxh7 {[%clk
00:47:41]} {[%emt 00:08:51]} Rxh7 {[%clk 00:43:40]} {[%emt 00:03:48]} 18. Qxh7
{[%clk 00:48:07]} {[%emt 00:00:03]} O-O-O {[%clk 00:43:16]} {[%emt 00:00:54]}
19. Bd3 {[%clk 00:46:05]} {[%emt 00:02:32]} Nxe5 {[%clk 00:33:58]} {[%emt
00:09:49]} 20. Rc1+ {[%clk 00:44:58]} {[%emt 00:01:36]} Kb8 {[%clk 00:33:18]}
{[%emt 00:01:09]} 21. Rc3 {[%clk 00:44:45]} {[%emt 00:00:45]} Qd5 {[%clk
00:22:29]} {[%emt 00:11:18]} 22. Qh2 {[%clk 00:42:43]} {[%emt 00:02:32]} Ka8
{[%clk 00:14:34]} {[%emt 00:08:21]} 23. Bc4 {[%clk 00:36:48]} {[%emt 00:06:28]}
Qd6 {[%clk 00:14:26]} {[%emt 00:00:38]} 24. e4 {[%clk 00:35:28]} {[%emt
00:01:52]} Bxe4 {[%clk 00:11:05]} {[%emt 00:03:52]} 25. Qe2 {[%clk 00:21:46]}
{[%emt 00:14:11]} Bc6 {[%clk 00:09:52]} {[%emt 00:01:42]} 0-1

[Event "Elitserien 2019/2020, round 1-3"]
[Site "Uppsala University, Gamla torget, Uppsala, Sweden"]
[Date "2019.10.20"]
[Round "3.16"]
[White "Grandell, Anders"]
[Black "Thorn, Eric"]
[Result "1/2-1/2"]
[TimeControl "90 minutes for 40 moves + 30 minutes for the rest of the game + 30 seconds per move from move one."]
[WhiteTitle "FM"]
[BlackTitle "FM"]
[WhiteFideId "1709771"]
[BlackFideId "1710729"]
[WhiteElo "2289"]
[BlackElo "2212"]

1. d4 {[%clk 01:30:53]} {[%emt 00:00:07]} Nf6 {[%clk 01:30:45]} {[%emt
00:00:15]} 2. c4 {[%clk 01:31:00]} {[%emt 00:00:24]} e6 {[%clk 01:31:08]}
{[%emt 00:00:06]} 3. Nf3 {[%clk 01:31:27]} {[%emt 00:00:03]} d5 {[%clk
01:31:31]} {[%emt 00:00:07]} 4. Nc3 {[%clk 01:31:47]} {[%emt 00:00:10]} dxc4
{[%clk 01:30:55]} {[%emt 00:01:06]} 5. e3 {[%clk 01:26:10]} {[%emt 00:06:07]}
a6 {[%clk 01:31:08]} {[%emt 00:00:18]} 6. a4 {[%clk 01:23:02]} {[%emt
00:03:38]} c5 {[%clk 01:29:52]} {[%emt 00:01:45]} 7. Bxc4 {[%clk 01:22:55]}
{[%emt 00:00:36]} Nc6 {[%clk 01:30:10]} {[%emt 00:00:13]} 8. O-O {[%clk
01:22:52]} {[%emt 00:00:34]} Be7 {[%clk 01:30:06]} {[%emt 00:00:33]} 9. dxc5
{[%clk 01:01:54]} {[%emt 00:21:27]} Qxd1 {[%clk 01:28:46]} {[%emt 00:01:50]} 10.
Rxd1 {[%clk 01:02:09]} {[%emt 00:00:15]} Bxc5 {[%clk 01:29:11]} {[%emt
00:00:06]} 11. h3 {[%clk 01:01:57]} {[%emt 00:00:42]} Bb4 {[%clk 01:21:11]}
{[%emt 00:08:30]} 12. Na2 {[%clk 00:54:58]} {[%emt 00:07:29]} Be7 {[%clk
01:21:13]} {[%emt 00:00:28]} 13. Bd2 {[%clk 00:52:56]} {[%emt 00:02:32]} Ne4
{[%clk 01:14:13]} {[%emt 00:07:30]} 14. Be1 {[%clk 00:51:16]} {[%emt 00:02:10]}
Bf6 {[%clk 01:14:38]} {[%emt 00:00:06]} 15. Rab1 {[%clk 00:50:33]} {[%emt
00:01:12]} Bd7 {[%clk 01:09:15]} {[%emt 00:05:53]} 16. b4 {[%clk 00:42:20]}
{[%emt 00:08:43]} Ne7 {[%clk 01:01:29]} {[%emt 00:08:16]} 17. Bd3 {[%clk
00:36:09]} {[%emt 00:06:41]} Nd6 {[%clk 00:54:43]} {[%emt 00:07:16]} 18. e4
{[%clk 00:20:37]} {[%emt 00:16:02]} Ng6 {[%clk 00:49:39]} {[%emt 00:05:34]} 19.
Bc3 {[%clk 00:18:55]} {[%emt 00:02:12]} Bxc3 {[%clk 00:47:07]} {[%emt
00:03:02]} 20. Nxc3 {[%clk 00:19:23]} {[%emt 00:00:02]} Rc8 {[%clk 00:45:18]}
{[%emt 00:02:18]} 21. Rdc1 {[%clk 00:17:10]} {[%emt 00:02:44]} Ke7 {[%clk
00:39:38]} {[%emt 00:06:09]} 22. e5 {[%clk 00:09:13]} {[%emt 00:08:28]} Nc4
{[%clk 00:37:28]} {[%emt 00:02:40]} 23. Bxg6 {[%clk 00:04:49]} {[%emt
00:04:54]} hxg6 {[%clk 00:37:46]} {[%emt 00:00:12]} 24. Ne4 {[%clk 00:04:28]}
{[%emt 00:00:51]} Na3 {[%clk 00:05:13]} {[%emt 00:33:03]} 25. Ra1 {[%clk
00:04:52]} {[%emt 00:00:06]} Nc2 {[%clk 00:05:29]} {[%emt 00:00:14]} 26. Rab1
{[%clk 00:05:16]} {[%emt 00:00:06]} Na3 {[%clk 00:05:38]} {[%emt 00:00:21]} 27.
Ra1 {[%clk 00:05:45]} Nc2 {[%clk 00:05:19]} {[%emt 00:00:49]} 28. Rab1 {[%clk
00:05:59]} {[%emt 00:00:16]} Na3 {[%clk 00:05:01]} {[%emt 00:00:48]} 1/2-1/2

[Event "Elitserien 2019/2020, round 1-3"]
[Site "Uppsala University, Gamla torget, Uppsala, Sweden"]
[Date "2019.10.20"]
[Round "3.17"]
[White "Gdanski, Jacek"]
[Black "Hammer, Jon Ludvig"]
[Result "1/2-1/2"]
[TimeControl "90 minutes for 40 moves + 30 minutes for the rest of the game + 30 seconds per move from move one."]
[WhiteTitle "GM"]
[BlackTitle "GM"]
[WhiteFideId "1100106"]
[BlackFideId "1503707"]
[WhiteElo "2476"]
[BlackElo "2635"]

1. Nf3 {[%clk 01:30:57]} {[%emt 00:00:02]} d5 {[%clk 01:28:34]} {[%emt
00:02:26]} 2. c4 {[%clk 01:31:20]} {[%emt 00:00:07]} d4 {[%clk 01:28:57]}
{[%emt 00:00:07]} 3. g3 {[%clk 01:31:28]} {[%emt 00:00:22]} Nc6 {[%clk
01:29:06]} {[%emt 00:00:20]} 4. Bg2 {[%clk 01:30:24]} {[%emt 00:01:35]} e5
{[%clk 01:29:28]} {[%emt 00:00:08]} 5. d3 {[%clk 01:30:51]} {[%emt 00:00:04]}
Nf6 {[%clk 01:27:27]} {[%emt 00:02:31]} 6. O-O {[%clk 01:31:15]} {[%emt
00:00:05]} Bd6 {[%clk 01:27:52]} {[%emt 00:00:06]} 7. e3 {[%clk 01:26:10]}
{[%emt 00:05:35]} O-O {[%clk 01:27:30]} {[%emt 00:00:51]} 8. exd4 {[%clk
01:26:00]} {[%emt 00:00:41]} exd4 {[%clk 01:27:52]} {[%emt 00:00:08]} 9. Bg5
{[%clk 01:24:57]} {[%emt 00:01:33]} h6 {[%clk 01:28:16]} {[%emt 00:00:06]} 10.
Bxf6 {[%clk 01:25:24]} {[%emt 00:00:03]} Qxf6 {[%clk 01:28:34]} {[%emt
00:00:12]} 11. Nbd2 {[%clk 01:25:30]} {[%emt 00:00:24]} Qd8 {[%clk 01:28:34]}
{[%emt 00:00:29]} 12. a3 {[%clk 01:24:19]} {[%emt 00:01:41]} a5 {[%clk
01:28:57]} {[%emt 00:00:06]} 13. Re1 {[%clk 01:22:54]} {[%emt 00:01:55]} a4
{[%clk 01:23:19]} {[%emt 00:06:08]} 14. b4 {[%clk 01:06:14]} {[%emt 00:17:11]}
axb3 {[%clk 01:23:41]} {[%emt 00:00:08]} 15. Qxb3 {[%clk 01:06:42]} {[%emt
00:00:02]} Na5 {[%clk 01:08:07]} {[%emt 00:16:04]} 16. Qc2 {[%clk 01:03:54]}
{[%emt 00:03:18]} c5 {[%clk 01:07:48]} {[%emt 00:00:48]} 17. Ne4 {[%clk
01:04:21]} {[%emt 00:00:04]} Ra6 {[%clk 00:43:42]} {[%emt 00:24:36]} 18. Nxd6
{[%clk 00:58:25]} {[%emt 00:06:26]} Rxd6 {[%clk 00:43:27]} {[%emt 00:00:44]} 19.
Nd2 {[%clk 00:58:52]} {[%emt 00:00:04]} b6 {[%clk 00:43:40]} {[%emt 00:00:17]}
20. Rab1 {[%clk 00:46:13]} {[%emt 00:13:10]} Bb7 {[%clk 00:42:40]} {[%emt
00:01:29]} 21. Bxb7 {[%clk 00:41:29]} {[%emt 00:05:15]} Nxb7 {[%clk 00:42:25]}
{[%emt 00:00:44]} 22. Qa4 {[%clk 00:35:41]} {[%emt 00:06:18]} Na5 {[%clk
00:34:47]} {[%emt 00:08:07]} 1/2-1/2

[Event "Elitserien 2019/2020, round 1-3"]
[Site "Uppsala University, Gamla torget, Uppsala, Sweden"]
[Date "2019.10.20"]
[Round "3.18"]
[White "Blomqvist, Erik"]
[Black "Ornstein, Axel"]
[Result "1-0"]
[TimeControl "90 minutes for 40 moves + 30 minutes for the rest of the game + 30 seconds per move from move one."]
[WhiteTitle "GM"]
[BlackTitle "IM"]
[WhiteFideId "1709437"]
[BlackFideId "1700111"]
[WhiteElo "2519"]
[BlackElo "2297"]

1. e4 {[%clk 01:30:56]} {[%emt 00:00:03]} e5 {[%clk 01:30:54]} {[%emt
00:00:07]} 2. Nf3 {[%clk 01:31:21]} {[%emt 00:00:05]} Nc6 {[%clk 01:31:19]}
{[%emt 00:00:04]} 3. Bb5 {[%clk 01:31:44]} {[%emt 00:00:07]} a6 {[%clk
01:31:07]} {[%emt 00:00:43]} 4. Ba4 {[%clk 01:32:07]} {[%emt 00:00:06]} Nf6
{[%clk 01:31:33]} {[%emt 00:00:04]} 5. O-O {[%clk 01:32:28]} {[%emt 00:00:08]}
Be7 {[%clk 01:32:00]} {[%emt 00:00:03]} 6. d3 {[%clk 01:32:22]} {[%emt
00:00:36]} b5 {[%clk 01:32:21]} {[%emt 00:00:10]} 7. Bb3 {[%clk 01:32:43]}
{[%emt 00:00:09]} O-O {[%clk 01:32:42]} {[%emt 00:00:09]} 8. Nc3 {[%clk
01:32:29]} {[%emt 00:00:44]} d6 {[%clk 01:30:06]} {[%emt 00:03:06]} 9. a3
{[%clk 01:32:46]} {[%emt 00:00:13]} Bg4 {[%clk 01:26:27]} {[%emt 00:04:08]} 10.
Be3 {[%clk 01:32:59]} {[%emt 00:00:17]} Qd7 {[%clk 01:15:52]} {[%emt 00:11:06]}
11. h3 {[%clk 01:28:58]} {[%emt 00:04:30]} Bh5 {[%clk 01:16:16]} {[%emt
00:00:06]} 12. Nd5 {[%clk 01:28:28]} {[%emt 00:01:01]} Na5 {[%clk 00:56:56]}
{[%emt 00:19:50]} 13. Nxf6+ {[%clk 01:23:20]} {[%emt 00:05:38]} Bxf6 {[%clk
00:57:18]} {[%emt 00:00:07]} 14. Ba2 {[%clk 01:23:46]} {[%emt 00:00:04]} Rae8
{[%clk 00:55:31]} {[%emt 00:02:17]} 15. g4 {[%clk 01:23:19]} {[%emt 00:00:56]}
Bg6 {[%clk 00:56:00]} {[%emt 00:00:02]} 16. Kg2 {[%clk 01:21:10]} {[%emt
00:02:39]} h6 {[%clk 00:54:52]} {[%emt 00:01:39]} 17. g5 {[%clk 01:03:05]}
{[%emt 00:18:35]} hxg5 {[%clk 00:55:13]} {[%emt 00:00:09]} 18. Nxg5 {[%clk
01:03:27]} {[%emt 00:00:09]} Bxg5 {[%clk 00:36:58]} {[%emt 00:18:45]} 19. Bxg5
{[%clk 01:03:46]} {[%emt 00:00:10]} Kh8 {[%clk 00:37:24]} {[%emt 00:00:04]} 20.
f4 {[%clk 00:53:03]} {[%emt 00:11:13]} f5 {[%clk 00:32:36]} {[%emt 00:05:18]}
21. fxe5 {[%clk 00:48:03]} {[%emt 00:05:31]} Rxe5 {[%clk 00:29:19]} {[%emt
00:03:46]} 22. Bd2 {[%clk 00:34:32]} {[%emt 00:14:01]} Nc6 {[%clk 00:28:06]}
{[%emt 00:01:44]} 23. Bc3 {[%clk 00:32:48]} {[%emt 00:02:14]} Ree8 {[%clk
00:28:14]} {[%emt 00:00:21]} 24. Rf4 {[%clk 00:31:54]} {[%emt 00:01:24]} Qe7
{[%clk 00:23:03]} {[%emt 00:05:42]} 25. exf5 {[%clk 00:26:15]} {[%emt
00:06:09]} Qg5+ {[%clk 00:22:56]} {[%emt 00:00:37]} 26. Qg4 {[%clk 00:23:19]}
{[%emt 00:03:26]} Rxf5 {[%clk 00:23:00]} {[%emt 00:00:26]} 27. Rxf5 {[%clk
00:20:13]} {[%emt 00:03:36]} Qxf5 {[%clk 00:22:59]} {[%emt 00:00:31]} 28. Rf1
{[%clk 00:20:05]} {[%emt 00:00:37]} Qxg4+ {[%clk 00:21:49]} {[%emt 00:01:41]}
29. hxg4 {[%clk 00:19:25]} {[%emt 00:01:10]} Ne5 {[%clk 00:16:13]} {[%emt
00:06:06]} 30. Kg3 {[%clk 00:18:41]} {[%emt 00:01:13]} c5 {[%emt 00:11:34]} 31.
Bd5 {[%clk 00:18:22]} {[%emt 00:00:47]} Bh7 {[%clk 00:05:39]} {[%emt 00:00:03]}
32. Rh1 {[%clk 00:16:14]} {[%emt 00:02:37]} g6 {[%clk 00:03:45]} {[%emt
00:02:24]} 33. Bf7 {[%clk 00:16:01]} {[%emt 00:00:42]} 1-0